Cogmind - Beta 16.1 @@@ ROGUE MODE // 2026.02.16 @ 21:22:05 Player: Rudrot Result: Destroyed by G-47 Trooper with Particle Gun Performance ------------- Evolutions (2) 1000 Regions Visited (6) 1200 Robots Destroyed (88) 440 Value Destroyed (2122) 2122 Prototype IDs (30) 600 Alien Tech Used (0) 0 Bonus (316) 316 TOTAL SCORE: 5678 Bonus ------- High Alert Combat Kills 105 Follower Combat Kills 32 Aligned with FarCom 300 Friendly Fire -121 Cogmind --------- Core Integrity 0/550 Matter 84/300 Energy 31/150 System Corruption 14% Temperature Cool (9) Movement Rolling (110) Ox2 Location -8/Storage Parts ------- > --- POWER (1) -------- Micro Nuclear Core > --- PROPULSION (3) --- Wheel > --- UTILITY (5) ------ Medium Storage Unit > --- WEAPON (2) ------- Advanced EMP Blaster > --- INVENTORY (10) --- Improved Heat Sink Improved Heat Sink Improved Heat Sink Advanced Visual Processing Unit Hardened Light Armor Plating Hardened Medium Armor Plating Thief Drone Bay (3/3) PSU Rigger Peak State ------------ > --- POWER ------------ Nuclear Core > --- PROPULSION ------- Aluminum Leg Titanium Leg Titanium Leg > --- UTILITY ---------- Improved Heat Sink Improved Heat Sink Medium Storage Unit Hardened Medium Armor Plating PSU Rigger > --- WEAPON ----------- Spread Laser Beamcaster > --- INVENTORY -------- Light Deuterium Engine Light Nuclear Core Light Nuclear Core Aluminum Leg Advanced Visual Processing Unit Hardened Light Armor Plating Hardened Medium Armor Plating Thief Drone Bay Shock Rifle Rocket Launcher [Rating: 38] Favorites ----------- Power Ion Engine Engine Ion Engine Power Core Nuclear Core Propulsion Aluminum Leg Treads Light Treads Leg Aluminum Leg Wheel Wheel Utility Medium Storage Unit Device Improved Heat Sink Storage Medium Storage Unit Processor Signal Interpreter Protection Hardened Medium Armor Plating Weapon Medium Laser Energy Gun Medium Laser Ballistic Gun Assault Rifle Launcher Rocket Launcher Special Weapon Mining Laser Build | -11 -10 -10 -10 -9 -8 -8 ------- Run | Yrd Mat Min Exi Min Mat Sto Slots Evolved 4 | . . . . . 4 . Power . | . . . . . . . Propulsion 1 | . . . . . 1 . Utility 3 | . . . . . 3 . Weapon . | . . . . . . . Parts Attached 59 | 8 11 . 1 4 31 4 Power 9 | 1 2 . . . 5 1 Engine 4 | 1 2 . . . 1 . Core 5 | . . . . . 4 1 Reactor . | . . . . . . . Propulsion 16 | 2 4 . . 1 8 1 Treads 2 | . . . . . 2 . Leg 13 | 2 4 . . 1 6 . Wheel 1 | . . . . . . 1 Hover . | . . . . . . . Flight . | . . . . . . . Utility 19 | 3 3 . 1 . 11 1 Device 9 | 2 . . . . 6 1 Storage 4 | 1 2 . . . 1 . Processor 2 | . . . 1 . 1 . Hackware . | . . . . . . . Protection 4 | . 1 . . . 3 . Artifact . | . . . . . . . Weapon 15 | 2 2 . . 3 7 1 Energy Gun 10 | 1 1 . . 2 6 . Energy Cannon . | . . . . . . . Ballistic Gun 2 | 1 . . . . 1 . Ballistic Cannon . | . . . . . . . Launcher 2 | . . . . 1 . 1 Special Weapon 1 | . 1 . . . . . Impact Weapon . | . . . . . . . Slashing Weapon . | . . . . . . . Piercing Weapon . | . . . . . . . Special Melee Weapon . | . . . . . . . Unidentified Prototypes 2 | . . . . . 1 1 Corrupted Parts 2 | . . . . . 1 1 System Corruption 9 | . . . . . 3 6 Parts Lost 29 | . 3 . . 1 25 . Power 4 | . 1 . . . 3 . Propulsion 9 | . 1 . . . 8 . Utility 7 | . 1 . . . 6 . Weapon 9 | . . . . 1 8 . Highest Loss Streak 7 | . 2 . . 1 7 . To Critical Strikes . | . . . . . . . Average Backups 7 | 1 5 8 6 8 7 8 Power . | . . . . . 1 . Propulsion 1 | . 1 3 2 2 1 . Utility 3 | . 2 2 2 3 3 7 Weapon 2 | . 1 2 2 3 1 . Tool/Special . | . . . . . . . Unused Backups 9 | . . . . . 8 1 Power 5 | . . . . . 5 . Propulsion 2 | . . . . . 2 . Utility 2 | . . . . . 1 1 Weapon . | . . . . . . . Tool/Special . | . . . . . . . Average Slot Usage (%) 89 | . 95 85 97 93 85 16 Engine 10 | . 14 14 14 14 4 . Core 1 | . . . . . 4 . Leg 25 | . 25 28 28 28 23 . Device 5 | . 9 . . . 13 1 Storage 12 | . 14 14 14 14 9 9 Processor 5 | . . . 11 14 3 . Protection 3 | . 3 . . . 9 . Energy Gun 17 | . 21 28 28 10 15 . Ballistic Gun 1 | . 5 . . . . . Launcher 1 | . . . . 4 1 4 Special Weapon 1 | . 1 . . 6 . . Peak Build Rating 38 | 9 9 7 8 17 38 16 Average Rating 13 | 7 8 6 7 10 26 6 On Entrance 8 | . 9 7 7 8 17 10 Avg Prop Armor Cover (%) . | . . . . . . . Naked Turns . | . . . . . . . Heaviest Build 45 | 13 21 21 18 24 45 22 Greatest Support 44 | 20 20 20 20 30 44 10 Greatest Overweight (x) 7 | . 2 1 . 1 7 5 Average Overweight (x) . | . . . . . . 3 Largest Inventory Capacity 10 | 8 10 10 10 10 10 10 Average Capacity 9 | 7 9 10 10 10 10 10 Most Carried 10 | 2 9 9 9 10 10 9 Average Carried 7 | 1 5 8 6 8 7 8 Final Capacity 10 | 8 10 10 10 10 10 10 Final Carried 9 | 2 7 9 7 9 7 8 Class Distribution -------------------- 89% | Mutant 10% | Scavenger-Mutant Dominant Class ---------------- Mutant | -10/Materials Mutant | -10/Mines Mutant | -10/Exiles Mutant | -9/Mines Mutant | -8/Materials Mutant | -8/Storage Resources | -11 -10 -10 -10 -9 -8 -8 ----------- Run | Yrd Mat Min Exi Min Mat Sto Matter Collected 1677 | 310 184 9 . 265 894 15 Remotely 371 | . . . . . 371 . Salvage Created 2611 | 181 362 . . 158 1878 32 Parts 172 | 11 31 . . 19 106 5 Haulers Intercepted 2 | . 1 . . . 1 . Recyclers Shooed 1 | . . . . . 1 . Parts Field Recycled . | . . . . . . . Retrieved Matter . | . . . . . . . Parts Self-Destructed . | . . . . . . . Prevented . | . . . . . . . Parts Restored . | . . . . . . . Kills | -11 -10 -10 -10 -9 -8 -8 ------- Run | Yrd Mat Min Exi Min Mat Sto Combat Hostiles Destroyed 55 | . 12 . . 10 33 . Guns 35 | . 11 . . 4 20 . AOE 17 | . 1 . . 6 10 . Classes Destroyed 13 | 3 4 . . 1 5 . Worker 7 | 1 . . . 1 4 1 Builder 9 | . . . . . 8 1 Tunneler 4 | 3 . . . 1 . . Hauler 2 | . 1 . . . 1 . Recycler 3 | 1 . . . . 2 . Mechanic 1 | . . . . . 1 . Watcher 6 | . 2 . . . 4 . Swarmer 20 | . 7 . . 9 4 . Grunt 23 | . 5 . . 1 17 . Brawler 2 | . . . . . 2 . Sentry 6 | . . . . . 6 . Hunter 4 | . . . . . 4 . Zionite 1 | . . . . 1 . . Best Kill Streak 5 | 2 3 . . 4 5 1 Combat Bots Only 4 | . 3 . . 3 4 . Max Kills in Single Turn 3 | 1 1 . . 2 3 1 Gunslinging . | . . . . . . . Exploded 2 | . 1 . . 2 1 . Melee . | . . . . . . . Uniques/NPCs Destroyed . | . . . . . . . Combat | -11 -10 -10 -10 -9 -8 -8 -------- Run | Yrd Mat Min Exi Min Mat Sto Hostile Shots Fired 303 | . 52 . . 18 229 4 Missed 79 | . 14 . . 9 54 2 Hits 224 | . 38 . . 9 175 2 Melee 2 | . . . . . 2 . Projectile 222 | . 38 . . 9 173 2 AOE 1 | . 1 . . . . . Critical Strikes 6 | . . . . . 6 . Damage Taken 3622 | . 540 . . 149 2888 45 Core 772 | . 166 . . 55 520 31 Absorbed by Shields . | . . . . . . . Regen/Repaired (Parts) 89 | . 77 . . . 12 . Core Remaining (%) 55 | 100 . . . 11 . . Volleys Fired 303 | 10 50 . . 84 155 4 Largest 2 | 2 2 . . 2 2 1 Hottest 140 | 70 100 . . 140 140 36 Shots Fired 482 | 20 99 . . 101 258 4 Gun 386 | 20 98 . . 26 242 . Cannon . | . . . . . . . Launcher 57 | . . . . 37 16 4 Special 39 | . 1 . . 38 . . Kinetic 50 | 10 26 . . . 14 . Thermal 281 | 10 73 . . 64 134 . Explosive 53 | . . . . 37 16 . Electromagnetic 98 | . . . . . 94 4 Robot Hit Streak 16 | 9 14 . . 16 9 1 Robot Miss Streak 13 | 1 8 . . 4 13 9 Penetration Max . | . . . . . . . Secondary Targets 11 | . 4 . . 1 6 . Max Gunslinging Chain 1 | . 1 . . 1 1 . Shots Hit Robots 229 | 16 46 . . 18 148 1 Core Hits 154 | 6 22 1 . 18 103 4 Critical Kills . | . . . . . . . Critical Parts Destroyed . | . . . . . . . Critical Strikes 8 | . 2 . . . 6 . Burn 6 | . 2 . . . 4 . Corrupt 2 | . . . . . 2 . Melee Attacks . | . . . . . . . Impact . | . . . . . . . Slashing . | . . . . . . . Piercing . | . . . . . . . Sneak Attacks . | . . . . . . . Combat Hostiles . | . . . . . . . Follow-up Attacks . | . . . . . . . Damage Inflicted 5776 | 201 587 9 . 746 4061 172 Guns 3592 | 201 582 . . 176 2633 . Cannons . | . . . . . . . Explosions 2099 | . . . . 543 1384 172 Melee . | . . . . . . . Ramming 85 | . 5 9 . 27 44 . Kinetic 420 | 92 138 . . . 190 . Thermal 2340 | 109 444 . . 176 1611 . Explosive 1749 | . . . . 543 1206 . Electromagnetic 1182 | . . . . . 1010 172 Impact . | . . . . . . . Slashing . | . . . . . . . Piercing . | . . . . . . . Highest Corruption 14 | . . . . . 8 14 Average Corruption 8 | . . . . . 7 8 Corruption Purged . | . . . . . . . Corruption Blocked . | . . . . . . . Effects 53 | . . . . . 45 8 Message Errors 11 | . . . . . 8 3 Matter Fused 17 | . . . . . 14 3 Heat Flow Errors 7 | . . . . . 7 . Energy Discharges 4 | . . . . . 4 . Data Loss (minor) 5 | . . . . . 4 1 Data Loss (major) 3 | . . . . . 2 1 Misfires 4 | . . . . . 4 . Weapon Failures 2 | . . . . . 2 . Overload Shots . | . . . . . . . Overflow Damage 27 | . . . . 10 17 . Projectiles . | . . . . . . . Explosions 27 | . . . . 10 17 . Melee . | . . . . . . . Knockbacks 1 | . . . . 1 . . Impact 1 | . . . . 1 . . Kinetic . | . . . . . . . Secondary . | . . . . . . . Self-Inflicted Damage 326 | . . . . 83 229 14 Shots 7 | . . . . 2 4 1 Rammed . | . . . . . . . Targets Rammed 16 | . 4 4 . 4 4 . Kicked 16 | . 4 4 . 4 4 . Crushed . | . . . . . . . Highest Temperature 421 | 36 232 . . 96 421 . Average Temperature 76 | 13 58 . . 29 110 . Received Heat Transfer 1359 | . 90 . . . 1251 18 Effects 5 | . . . . . 5 . Energy Bleed 1 | . . . . . 1 . Interference 4 | . . . . . 4 . Siege Activations . | . . . . . . . Martial Activations . | . . . . . . . Shielding Activations . | . . . . . . . Robots Disrupted . | . . . . . . . Combat Hostiles . | . . . . . . . Robots Corrupted 2 | . . . . . 2 . Combat Hostiles 2 | . . . . . 2 . Parts Fried 2 | . . . . . 1 1 Impact Corruptions . | . . . . . . . Robots Melted 1 | . . . . . 1 . Combat Hostiles 1 | . . . . . 1 . Parts Melted 6 | . 1 . . 2 3 . Heat Transferred 5140 | 333 1385 . . 424 2998 . Parts Sabotaged . | . . . . . . . Parts Stolen . | . . . . . . . Parts Stripped . | . . . . . . . Power Chain Reactions 4 | . . . . . 3 1 Alert | -11 -10 -10 -10 -9 -8 -8 ------- Run | Yrd Mat Min Exi Min Mat Sto Maximum Alert Level 2 | . . . . . 2 1 Low Security (%) 87 | 100 100 100 . 100 63 91 Level 1 7 | . . . . . 21 8 Level 2 5 | . . . . . 15 . Level 3 . | . . . . . . . Level 4 . | . . . . . . . Level 5 . | . . . . . . . High Security . | . . . . . . . Max Security . | . . . . . . . Peak Influence 572 | 5 109 . . 152 572 206 Initial 206 | . . . . . 55 206 Average 93 | . 33 . . 36 209 161 Influence Increases 2202 | 25 353 . . 482 1307 35 Destroy 0b10 Robot/C 1140 | . 240 . . 240 660 . Destroy 0b10 Robot/NC 160 | 25 15 . . 10 100 10 Destroy Leader 276 | . 56 . . 40 180 . Allied During Kill 17 | . . . . 17 . . Successful Hack 19 | . 11 . . . 8 . Disable Machine 165 | . 15 . . 15 120 15 Destroy Structure 290 | . 1 . . 160 119 10 Partial Spotted 15 | . . . . . 15 . Lose Combat Pursuer 120 | . 15 . . . 105 . Influence Decreases 2071 | 25 353 . . 339 961 393 Entered New Map 371 | . . . . . 88 283 Time Decay 1420 | 25 333 . . 329 623 110 Lost Part 280 | . 20 . . 10 250 . Squads Dispatched 17 | . 4 . . 1 11 1 Investigation 3 | . 2 . . . 1 . Extermination . | . . . . . . . Reinforcement 9 | . 2 . . 1 5 1 Assault 1 | . . . . . 1 . Garrison 4 | . . . . . 4 . Intercept . | . . . . . . . Searches Triggered . | . . . . . . . Construction Impeded 4 | . . . . 1 2 1 Haulers Reinforced . | . . . . . . . Active Scanning Responses . | . . . . . . . Cargo Convoy Interrupts . | . . . . . . . Stealth | -11 -10 -10 -10 -9 -8 -8 --------- Run | Yrd Mat Min Exi Min Mat Sto Distress Signals 9 | . 1 . . . 7 1 Communications Jammed . | . . . . . . . Distress Signals . | . . . . . . . Times Spotted 95 | . 26 . . 12 56 1 Peak Tracking Total 6 | . 4 . . 4 6 1 Tactical Retreats 5 | . 1 . . . 4 . Traps | -11 -10 -10 -10 -9 -8 -8 ------- Run | Yrd Mat Min Exi Min Mat Sto Traps Triggered 6 | . 4 . . . 1 1 Indirectly . | . . . . . . . Trap Hack Attempts . | . . . . . . . Triggered . | . . . . . . . Disarmed . | . . . . . . . Reprogrammed . | . . . . . . . Reused . | . . . . . . . Traps Extracted . | . . . . . . . Installed . | . . . . . . . Triggered . | . . . . . . . Objects Rigged 10 | . . . . . 10 . Exploded 8 | . . . . . 8 . Machines | -11 -10 -10 -10 -9 -8 -8 ---------- Run | Yrd Mat Min Exi Min Mat Sto Machines Disabled 11 | . 1 . . 1 8 1 Max in Single Turn 3 | . 1 . . 1 3 1 Machines Repaired . | . . . . . . . Machines Dismantled . | . . . . . . . Machines Sabotaged . | . . . . . . . Overloaded Fab Kills . | . . . . . . . Hacking | -11 -10 -10 -10 -9 -8 -8 --------- Run | Yrd Mat Min Exi Min Mat Sto Machines Accessed 11 | . 5 . 1 1 4 . Terminals 7 | . 4 . . . 3 . Fabricators . | . . . . . . . Repair Stations 2 | . 1 . . . 1 . Recycling Units . | . . . . . . . Scanalyzers . | . . . . . . . Garrison Access . | . . . . . . . Total Hacks 23 | . 12 . 1 1 9 . Successful 17 | . 9 . 1 1 6 . Failed 6 | . 3 . . . 3 . Catastrophic 1 | . . . . . 1 . Database Lockouts . | . . . . . . . Manual 1 | . . . 1 . . . Terminals 13 | . 8 . . . 5 . Fabricators . | . . . . . . . Repair Stations 8 | . 4 . . . 4 . Recycling Units . | . . . . . . . Scanalyzers . | . . . . . . . Garrison Access . | . . . . . . . Terminal Hacks 10 | . 5 . 1 1 3 . Record 1 | . . . . . 1 . Prototype ID Bank 3 | . 1 . . . 2 . Open Door 1 | . . . . 1 . . Emergency Access Points 1 | . 1 . . . . . Alert Level 1 | . 1 . . . . . Locate Traps 2 | . 2 . . . . . Proto ID Catalog 1 | . . . 1 . . . Fabricator Hacks . | . . . . . . . Repair Station Hacks 7 | . 4 . . . 3 . Scan Component 4 | . 2 . . . 2 . Repair 3 | . 2 . . . 1 . Recycling Unit Hacks . | . . . . . . . Scanalyzer . | . . . . . . . Garrison Access Hacks . | . . . . . . . Unauthorized Hacks . | . . . . . . . Terminals . | . . . . . . . Fabricators . | . . . . . . . Repair Stations . | . . . . . . . Recycling Units . | . . . . . . . Scanalyzers . | . . . . . . . Garrison Access . | . . . . . . . Data Cores Recovered . | . . . . . . . Used . | . . . . . . . Hacking Detections 7 | . 5 . . . 2 . Full Trace Events . | . . . . . . . Feedback Events . | . . . . . . . Feedback Blocked . | . . . . . . . Robot Schematics Acquired . | . . . . . . . Robots Built . | . . . . . . . Authchips . | . . . . . . . Time . | . . . . . . . Total Robot Build Rating . | . . . . . . . Part Schematics Acquired . | . . . . . . . Parts Built . | . . . . . . . Authchips . | . . . . . . . Time . | . . . . . . . Total Part Build Rating . | . . . . . . . Part Studies Acquired . | . . . . . . . Parts Repaired 3 | . 2 . . . 1 . Time 88 | . 52 . . . 36 . Parts Recycled . | . . . . . . . Recycled Matter . | . . . . . . . Retrieved Matter . | . . . . . . . Retrieved Components . | . . . . . . . Parts Scanalyzed . | . . . . . . . Part Schematics Acquired . | . . . . . . . Parts Damaged . | . . . . . . . Bothacking | -11 -10 -10 -10 -9 -8 -8 ------------ Run | Yrd Mat Min Exi Min Mat Sto Used RIF Installer . | . . . . . . . Robots Hacked . | . . . . . . . Non-combat . | . . . . . . . Combat . | . . . . . . . Robot Hacks Applied . | . . . . . . . Relay Couplers Released . | . . . . . . . Fabnet Peak Effective % . | . . . . . . . Robots Rewired . | . . . . . . . Allies Hacked . | . . . . . . . Hacks Repelled . | . . . . . . . Allies | -11 -10 -10 -10 -9 -8 -8 -------- Run | Yrd Mat Min Exi Min Mat Sto Total Allies 2 | . . . . 2 . . Largest Group 2 | . . . . 2 . . Highest-Rated Group 42 | . . . . 42 . . Highest-Rated Ally 31 | . . . . 31 . . Total Orders . | . . . . . . . Ally Attacks 13 | . . . . 13 . . Total Damage 187 | . . . . 187 . . Kills 2 | . . . . 2 . . Allies Corrupted . | . . . . . . . Allies Melted . | . . . . . . . Intel | -11 -10 -10 -10 -9 -8 -8 ------- Run | Yrd Mat Min Exi Min Mat Sto Active Infowar (turns) 1178 | 127 978 . . . 73 . Terrain 1085 | 107 978 . . . . . Seismic 93 | 20 . . . . 73 . Robot Analysis Total . | . . . . . . . Derelict Logs Recovered 3 | . . 2 . 1 . . Drone Launches . | . . . . . . . Drone Recoveries . | . . . . . . . Exploration | -11 -10 -10 -10 -9 -8 -8 ------------- Run | Yrd Mat Min Exi Min Mat Sto Turns Passed 7762 | 243 1509 618 1047 1878 2240 227 Spaces Moved 4607 | 170 828 509 868 1076 1066 90 Core 95 | 6 . . . . 7 82 Treads 33 | . . . . . 33 . Legs 4471 | 164 828 509 868 1076 1026 . Wheels 8 | . . . . . . 8 Hover . | . . . . . . . Flight . | . . . . . . . Fastest Speed 50 | 50 120 120 120 120 120 95 Average Speed 132 | 117 150 120 120 123 136 231 Slowest Speed 400 | 120 260 190 120 190 400 300 Overloaded Moves . | . . . . . . . Propulsion Burnouts . | . . . . . . . Robots Hopped . | . . . . . . . Potential Cave-ins . | . . . . . . . Cave-ins Triggered . | . . . . . . . Exploration Rate (%) 63 | 5 96 87 93 98 55 10 Regions Visited 6 Branch Regions 4 Pre-discovered Areas 2 | . . 1 . 1 . . Known Exits Taken 2 | . . . 1 1 . . Unknown Exits Taken 4 | 1 1 1 . . 1 . Scrap Searched 2 | . . 1 . 1 . . Spaces Dug 178 | . . . . 147 31 . Terrain Destroyed 557 | . . . . 410 140 7 Melee . | . . . . . . . Projectile 24 | . . . . 24 . . AOE 533 | . . . . 386 140 7 Terrain Rammed . | . . . . . . . Walls Destroyed . | . . . . . . . Machines Disabled . | . . . . . . . Actions | -11 -10 -10 -10 -9 -8 -8 --------- Run | Yrd Mat Min Exi Min Mat Sto Total 5711 | 189 981 514 874 1442 1606 105 Wait 596 | . 72 . 3 260 259 2 Move 4601 | 169 827 508 867 1075 1065 90 Hop . | . . . . . . . Pick Up 31 | 1 7 1 1 1 20 . Fast Attach 37 | 8 5 . . 1 21 2 Attach 34 | . 3 . 1 5 22 3 Detach 34 | 1 2 1 . 5 21 4 Swap 19 | . 7 . . 6 6 . Drop 30 | . 4 . 2 1 23 . Fire 303 | 10 50 . . 84 155 4 Melee . | . . . . . . . Ram . | . . . . . . . Kick 16 | . 4 4 . 4 4 . Crush . | . . . . . . . Escape Stasis . | . . . . . . . Rewire . | . . . . . . . Trap 10 | . . . . . 10 . Miscellaneous . | . . . . . . . Route ------- -11/Scrapyard -10/Materials (discovered 6 exits: [*Mat x3] / [*Min x2] / [*Sub]) -10/Mines (discovered 3 exits: [*Mat] / *Exi / [*Sub]) -10/Exiles (discovered 2 exits: *Min x2) -9/Mines (discovered 2 exits: *Mat x2) -8/Materials -8/Storage History --------- Turn | Location | Event 4 | -11/Scrapyard | Discovered new exit (range 15) 244 | -11/Scrapyard | Entered Materials 302 | -10/Materials | Build established: Mutant 339 | -10/Materials | Discovered new exit (range 4) 633 | -10/Materials | Discovered new exit (range 10) 778 | -10/Materials | Discovered new exit (range 5) 842 | -10/Materials | Core integrity fell below 50% 1013 | -10/Materials | Repaired Aluminum Leg 1040 | -10/Materials | Repaired Assault Rifle 1065 | -10/Materials | Discovered new exit (range 6) 1282 | -10/Materials | Discovered new exit (range 7) 1558 | -10/Materials | Discovered new exit (range 14) 1753 | -10/Materials | Entered Mines 1792 | -10/Mines | Received a Rocket Launcher from a helpful Derelict 1885 | -10/Mines | Found a hidden stash of uninstalled traps 2016 | -10/Mines | Learned location of Zion (-7) 2058 | -10/Mines | Discovered new exit (range 10) 2212 | -10/Mines | Learned 4 Materials zone layouts 2214 | -10/Mines | Discovered new exit (range 6) 2302 | -10/Mines | Deemed a non-threat by the Exiles lab entrance 2304 | -10/Mines | Discovered new exit (range 5) 2371 | -10/Mines | Entered Exiles 2388 | -10/Exiles | Discovered new exit (range 15) 2427 | -10/Exiles | Met 8R-AWN 2448 | -10/Exiles | Met EX-HEX 2496 | -10/Exiles | Met EX-DEC 2539 | -10/Exiles | Discovered new exit (range 11) 2566 | -10/Exiles | Identified exit to Mines 2727 | -10/Exiles | Visited The Gauntlet 2895 | -10/Exiles | Met EX-BIN 2915 | -10/Exiles | Aligned with FarCom system 2916 | -10/Exiles | Given EX-Vault access code 2972 | -10/Exiles | Opened EX-Vault 2980 | -10/Exiles | Found PSU Rigger 3005 | -10/Exiles | Warned to stay clear of 0b10 Research branches 3418 | -10/Exiles | Left Exiles lab with PSU Rigger 3418 | -10/Exiles | Entered Mines 3936 | -9/Mines | Discovered new exit (range 5) 3940 | -9/Mines | Identified exit to Materials 4590 | -9/Mines | Found the Drone Emporium 4598 | -9/Mines | Found Prototype Device 4691 | -9/Mines | Discovered exit to Materials (range 15) 4699 | -9/Mines | Core integrity fell below 20% 5296 | -9/Mines | Entered Materials 5296 | -8/Materials | Evolved 4 slots: Propulsion x1, Utility x3 5296 | -8/Materials | Identified Thief Drone Bay 5701 | -8/Materials | Build established: Scavenger-Mutant 6037 | -8/Materials | Build established: Mutant 6120 | -8/Materials | Lost 4 parts (1p1n1u1w) 6596 | -8/Materials | Repaired Corrupted Aluminum Leg 6900 | -8/Materials | Garrison activated, responded to threat 7296 | -8/Materials | First assault squad dispatched 7367 | -8/Materials | Discovered new exit (range 14) 7411 | -8/Materials | Core integrity fell below 50% 7458 | -8/Materials | Lost 7 parts (1p3n1u2w) 7489 | -8/Materials | Core integrity fell below 20% 7506 | -8/Materials | Garrison activated, responded to threat 7536 | -8/Materials | Entered Storage 7565 | -8/Storage | Lost 4 parts (1p1n2w) 7748 | -8/Storage | System corruption reached 10% 7763 | -8/Storage | Destroyed by G-47 Trooper with Particle Gun Last Messages --------------- 07683_ Recycling Unit disabled. 07683_ ALERT: Construction progress impeded, dispatching reinforcements to local area. 07686_ U-05 Engineer lays Concrete. 07688_ Wheel fried. 07688_ K-01 Serf destroyed. 07704_ System corrupted: Matter fused (-10). 07705_ Acquired 15 matter. 07716_ U-05 Engineer lays Concrete. 07719_ U-05 Engineer builds a Door. 07723_ U-05 Engineer lays Concrete. 07747_ Acquired Corrupted Wheel. 07747_ Integrated Corrupted Wheel (+6). 07747_ U-05 Engineer lays Concrete. 07752_ U-05 Engineer destroyed. 07752_ U-05 Engineer sends out distress signal. 07755_ System corrupted: Substantial component data lost. 07758_ Chain reaction triggered in Corrupted Lgt. Ion Engine. Map ----- +----------------------------------------------------+ | ??????????????????????????????????? | | ??????????????????????????????????? | | ??????????????????????????????????? | | ??????????????????????????????????? | | ??????????????????????????????????? | | ??????????????????????????????????? | | ??????????????????????????????????? | | ??????????????????????????????????? | | ?????????? ?????????????????????? | | ?????????? #????????????????????? | | ?????????# #????????????????????? | | ?????????# #????????????????????? | | ?????????" ;????????????????????? | | ?????????# #????????????????????? | | ????????"# #????????????????????? | | ????????"# g ????????????????????? | | ?????????; ;????????????????????? | | ????????? ##???????????????????? | | ????????##!% ;#???????????????????? | | ?????####; ! ;##??????????????????? | | ?????#]]## / #??????????????????? | | ?????#]]## #??????????????????? | | ?????#] ## #??????????????????? | | ????##" ## #????????????????????? | | ????#T # #???????????Y????????? | | ????## /@ !#????????????????????? | | ?????##### #????????????????????? | | ########## ########?????????????? | | # # # """"?????????????? | | # """ # u # """"?????????????? | | # """ # # """" ????????????? | | # """ # # """" #???????????? | | # + + #???????????? | | # """ # # #???????????? | | # """ # # #???????????? | | # """ # # #???????????? | | # # # #???????????? | | ########## ##########???????????? | | ?????????#####????????????????????? | | ??????????????????????????????????? | | ??????????????????????????????????? | | ??????????????????????????????????? | | ??????????????????????????????????? | | ??????????????????????????????????? | | ??????????????????????????????????? | | ??????????????????????????????????? | | ??????????????????????????????????? | | ??????????????????????????????????? | | ??????????????????????????????????? | | | +----------------------------------------------------+ Best States ------------- Heat Dissipation 59 Energy Generation 15 Energy Capacity 250 Matter Stores 300 Matter Capacity 300 Sight Range 16 Terrain Scan Range 16 Terrain Scan Density 10 Armor Coverage 600 Evasion (%) 55 Recoil Reduction 2 Item Schematics ----------------- None Robot Schematics ------------------ None Fabricated ------------ Nothing Repaired ---------- Aluminum Leg | 76% | -10/Materials Assault Rifle | 44% | -10/Materials Aluminum Leg | 86% | -8/Materials | Corrupted Studied --------- None Alien Tech Used ----------------- None Achievements -------------- Construction Begets Destruction Challenges ------------ None Game ------ Seed FluxTerrabombSystem Manual? 0 Play Time 01:15:29 Cumulative 47.6 hours Start 2026.02.16 @ 18:52:45 End 2026.02.16 @ 21:22:05 Sessions 1 Manual Loads 0 Difficulty Rogue Special Mode None Game No. 52 Rogue 52 Adventurer 0 Explorer 0 Win Type - Total 0 Types 0/0/0/0/0/0/0/0/0/0 Lore% 27 Gallery% 18 Achievement% 19 Wizard Run 0 Options --------- Layout 1 ASCII 0 Keyboard 1 Movement Numpad Keybinds 0 Fullscreen 2 Font 24/Cog Map View 50x35 Zoom Use 0% Tactical HUD 1 Map Filters NONE Filters NONE Steam 1 RUN: 5dc451d1-d05d-42b3-b67f-9e2e84ddae50